fUSD/lending_fUSD_20241231
["ID","MTS","AMOUNT","RATE_DAILY","PERIOD"]
[347274163,1735650632821,-300.0,0.000123,2]
[347274164,1735650632830,-152.0263011,0.00012373,2]
[347274167,1735650632839,-318.19692873,0.00012379,2]
[347274168,1735650632849,-500.0,0.00012379,2]
[347274170,1735650632859,-500.0,0.00012379,2]
[347274172,1735650632868,-409.33451819,0.00012379,2]
[347274174,1735650632877,-500.0,0.00012379,2]
[347274177,1735650632888,-652.88013468,0.00012379,3]
[347274178,1735650632898,-568.87,0.00012379,2]
[347274181,1735650632907,-27036.05141295,0.00012379,2]
[347274183,1735650632917,-513.0,0.0001238,2]
[347274185,1735650632927,-695.77401095,0.0001238,2]
[347274187,1735650632936,-17078.09908569,0.0001238,2]
[347274193,1735650632985,-430.68063875,0.0001238,2]
[347274209,1735650633128,-905.59839347,0.0001238,2]
[347274218,1735650633210,-72730.35502999,0.0001238,2]
[347274220,1735650633221,-43362.87497001,0.0001238,2]
[347274643,1735650637479,-7153783.792749,0.0001238,2]
[347274645,1735650637491,-896.31354805,0.0001238,2]
[347274648,1735650637503,-480.00334765,0.0001238,2]
[347274671,1735650637648,-264.09207643,0.0001238,2]
[347274679,1735650637721,-1496.98676046,0.0001238,2]
[347274684,1735650637765,-910.99026289,0.0001238,2]
[347274686,1735650637776,-2418.90747007,0.0001238,2]
[347274865,1735650639466,-18599.6974951,0.0001238,2]
[347274874,1735650639539,-339.76634803,0.0001238,2]
[347274876,1735650639551,-512.27802841,0.0001238,2]
[347274882,1735650639599,-500.0,0.0001238,2]
[347274893,1735650639706,-2905.57737627,0.0001238,2]
[347274895,1735650639718,-682.43977351,0.0001238,2]
[347274900,1735650639761,-9068.20096243,0.0001238,2]
[347274902,1735650639772,-10067.87935823,0.0001238,2]
[347274903,1735650639823,-775.59031934,0.0001238,2]
[347275275,1735650643364,-23661.25,0.0001238,2]
[347275282,1735650643426,-10816.61358908,0.0001238,2]
[347275296,1735650643544,-823577.96193133,0.0001238,2]
[347275298,1735650643555,-801.93334515,0.0001238,2]
[347275304,1735650643600,-11876.39998308,0.0001238,2]
[347275511,1735650645578,-524.31588696,0.0001238,2]
[347275513,1735650645589,-1864.749998,0.0001238,2]
[347275515,1735650645600,-5132.2190332,0.0001238,2]
[347275518,1735650645611,-2112.7,0.0001238,2]
[347275521,1735650645632,-211095.45477527,0.0001238,2]
[347275523,1735650645643,-16021.28016304,0.0001238,2]
[347275525,1735650645657,-1739678.06738023,0.0001238,2]
[347275527,1735650645668,-395.34834456,0.0001238,2]
[347275537,1735650645753,-562.79232836,0.0001238,2]
[347275545,1735650645819,-5763.69757104,0.0001238,2]
[347275547,1735650645830,-2251.13308513,0.0001238,2]
[347275550,1735650645852,-4950.0,0.0001238,2]
[347275553,1735650645864,-1200.0,0.0001238,2]
[347275779,1735650915489,1725.28,0.00011539,2]
[347275780,1735651020236,213.62,0.00010137,2]
[347275781,1735651091449,250.0,0.00011484,2]
[347275782,1735651121840,150.0,0.00011488,2]
[347275783,1735651152070,1000.0,0.0002,120]
[347275784,1735651239597,1000.0,0.0002,120]
[347275785,1735651293072,424.97,0.00011488,2]
[347275786,1735651294796,5000.0,0.0002,120]
[347275787,1735651331100,900.0,0.00011,2]
[347275788,1735651405620,250.0,0.00011475,2]
[347275789,1735651468774,166.66666666,0.00011581,2]
[347275790,1735651489158,340.39,9.512e-05,2]
[347275791,1735651506659,16442.44,0.00011432,2]
[347275792,1735651525871,981.75028578,0.000108,2]
[347275793,1735651533214,487.3,0.00011405,2]
[347275795,1735651587274,500.0,0.00011401,2]
[347275796,1735651646951,949.92,0.00011428,2]
[347275797,1735651698414,1000.0,0.00011448,2]
[347275836,1735651832733,-300.0,0.00011603,2]
[347275837,1735651832743,-238.316,0.0001176,2]
[347275838,1735651832752,-340.39,0.00011776,2]
[347275839,1735651832762,-164.17896944,0.00011833,2]
[347275840,1735651832774,-4.17103056,0.00011833,2]
[347275841,1735651832783,-450.0,0.00012,2]
[347275842,1735651832792,-152.02896694,0.00012,2]
[347275843,1735651832863,-6457.97103306,0.00012,2]
[347275844,1735651832873,-3065.9062445,0.00012,2]
[347275845,1735651832883,-166.43,0.00012046,2]
[347275846,1735651832892,-18164.4393,0.0001218,2]
[347275847,1735651832903,-934.4424,0.0001218,2]
[347275848,1735651832913,-5561.0,0.000122,3]
[347275849,1735651832922,-336.0,0.0001222,2]
[347275850,1735651832932,-1938.69102,0.0001226,2]
[347275851,1735651832942,-1000.0,0.0001228,2]
[347275852,1735651832951,-75568.1181,0.0001228,2]
[347275853,1735651832960,-3452.4286,0.0001228,2]
[347275854,1735651832970,-9161.3849,0.0001228,2]
[347275855,1735651832980,-1034.856,0.0001228,2]
[347275856,1735651832989,-880.6151479,0.0001228,2]
[347275857,1735651832999,-3537.2061,0.0001228,2]
[347275858,1735651833009,-1500.0,0.00012291,2]
[347275859,1735651833019,-500.0,0.00012301,2]
[347275860,1735651833029,-500.0,0.00012373,2]
[347275861,1735651833039,-150.0,0.00012374,2]
[347275862,1735651833049,-500.0,0.00012379,2]
[347275863,1735651833059,-14058.36842088,0.00012379,2]
[347275864,1735651833070,-347.88700548,0.0001238,2]
[347275865,1735651833080,-15000.0,0.0001238,2]
[347275866,1735651833090,-217570.55298491,0.0001238,2]
[347275867,1735651833102,-4805.96966051,0.0001238,2]
[347275868,1735651833114,-537.16533982,0.0001238,2]
[347275869,1735651833335,-31815.65877125,0.0001238,2]
[347275870,1735651833348,-805.61696077,0.0001238,2]
[347275871,1735651833397,-856.37969717,0.0001238,2]
[347276370,1735651839054,-12094.71114476,0.0001238,2]
[347276371,1735651839063,-17085.90385524,0.0001238,2]
[347276372,1735651839074,-3369.10464363,0.0001238,2]
[347276374,1735651839122,-37827.745096,0.0001238,2]
[347276378,1735651839153,-970.56539221,0.0001238,2]
[347276380,1735651839164,-7153783.792749,0.0001238,2]
[347276382,1735651839178,-25646.2740812,0.0001238,2]
[347276395,1735651839289,-39533.72583,0.0001238,2]
[347276397,1735651839300,-6566.87244044,0.0001238,2]
[347276399,1735651839310,-572.84469942,0.0001238,2]
[347276401,1735651839321,-959.66,0.0001238,2]
[347276411,1735651839405,-254.63662439,0.0001238,2]
[347276417,1735651839460,-477.13,0.0001238,2]
[347276495,1735651840915,-36439.95910488,0.0001238,2]
[347276496,1735651841050,-21354.2693,0.0001238,2]
[347276497,1735651841061,-34933.32230254,0.0001238,2]
[347276498,1735651841072,-13312.28640463,0.0001238,2]
[347276499,1735651841225,-25662.50000002,0.0001238,2]
[347276500,1735651841307,-83951.80466898,0.0001238,2]
[347276501,1735651841318,-2774.0273353,0.0001238,2]
[347276502,1735651841362,-5245.58067661,0.0001238,2]
[347276508,1735651841461,-1856.10825104,0.0001238,2]
[347276667,1735651844045,-44455.55485618,0.0001238,2]
[347276668,1735651844092,-2514.37088174,0.0001238,2]
[347276669,1735651844220,-1428.56,0.0001238,2]
[347276688,1735651846749,-113014.63421085,0.0001238,2]
[347276689,1735651846770,-77264.07636543,0.0001238,2]
[347276690,1735651846847,-23861.0,0.0001238,2]
[347276691,1735651846866,-4336.94100896,0.0001238,2]
[347276692,1735651846881,-3614.65762,0.0001238,2]
[347276693,1735651846897,-13009.375853,0.0001238,2]
[347276694,1735651846913,-7003.94292778,0.0001238,2]
[347276819,1735651868074,-300.0,0.00012379,2]
[347276820,1735651868099,-1104506.02697746,0.0001238,2]
[347276821,1735651868123,-150.76,0.0001238,2]
[347276822,1735651868147,-19216043.21302254,0.0001238,2]
[347276824,1735652033932,250.0,0.00011505,2]
[347276827,1735652275027,855.83,0.00011471,2]
[347276828,1735652323785,256.87,0.00010137,2]
[347276829,1735652372639,250.0,0.00011434,2]
[347276830,1735652374567,150.63,0.00011434,2]
[347276831,1735652374773,150.63,0.00011442,2]
[347276832,1735652375175,150.63,0.0001145,2]
[347276833,1735652375315,150.63,0.00011458,2]
[347276834,1735652375517,150.63,0.00011466,2]
[347276835,1735652375700,150.63,0.00011474,2]
[347276836,1735652376064,150.63,0.00011483,2]
[347276837,1735652376349,150.63,0.00011491,2]
[347276838,1735652684285,339.58,9.42e-05,2]
[347276839,1735652703916,316.45,0.00011337,2]
[347276840,1735652737207,1000.0,0.00011312,2]
[347276841,1735652754555,379.71,0.00011312,2]
[347276842,1735652938894,250.0,0.00011321,2]
[347276843,1735652943194,250.0,0.00011321,2]
[347276860,1735653032096,-339.58,0.00011684,2]
[347276861,1735653032105,-238.523,0.0001176,2]
[347276862,1735653032115,-62.1536413,0.00011815,2]
[347276863,1735653032250,-105.4163587,0.00011815,2]
[347276864,1735653032260,-450.0,0.00012,2]
[347276865,1735653032271,-176.63,0.00012038,2]
[347276866,1735653032281,-429.34778484,0.00012068,2]
[347276867,1735653032291,-286.4427183,0.00012132,2]
[347276868,1735653032301,-150.57,0.00012132,2]
[347276869,1735653032310,-150.0,0.00012137,2]
[347276870,1735653032320,-300.0,0.00012159,2]
[347276871,1735653032330,-524.97124485,0.0001216,2]
[347276883,1735653037954,-1468.67735515,0.0001216,2]
[347276884,1735653037963,-3799.7089,0.0001216,2]
[347276885,1735653037973,-314.652,0.0001218,2]
[347276886,1735653037983,-152.6,0.0001218,2]
[347276887,1735653037992,-345.73,0.000122,2]
[347276888,1735653038002,-332.1,0.000122,2]
[347276889,1735653038011,-437.44,0.000122,2]
[347276890,1735653038021,-182.22,0.000122,2]
[347276891,1735653038031,-46656.99226001,0.00012246,2]
[347276892,1735653038041,-9092.46351209,0.00012246,2]
[347276893,1735653038051,-32221.0,0.00012247,2]
[347276894,1735653038061,-94856.09942475,0.0001226,2]
[347276895,1735653038071,-151.28,0.0001226,2]
[347276896,1735653038081,-150.63,0.0001226,2]
[347276897,1735653038091,-2549.0217,0.0001226,2]
[347276898,1735653038104,-1000.0,0.0001228,2]
[347276899,1735653038113,-287.6027,0.0001228,2]
[347276900,1735653038123,-5980.1711,0.0001228,2]
[347276901,1735653038133,-1794.3307,0.0001228,2]
[347276902,1735653038143,-2803.4134,0.0001228,2]
[347276903,1735653038152,-222.7525,0.0001228,2]
[347276904,1735653038163,-38439.1171,0.0001228,2]
[347276905,1735653038173,-175.95011123,0.0001228,2]
[347276906,1735653038182,-1430.4553,0.0001228,2]
[347276907,1735653038193,-453.57630167,0.0001228,2]
[347276908,1735653038202,-3694.1939,0.0001228,2]
[347276909,1735653038212,-324.32093756,0.00012284,2]
[347276910,1735653038221,-150.0,0.00012285,2]
[347276912,1735653038230,-166.332,0.00012288,2]
[347276914,1735653038240,-1484.67,0.00012288,2]
[347276916,1735653038249,-1000.0,0.000123,2]
[347276918,1735653038258,-324.32093751,0.00012303,2]
[347276920,1735653038266,-324.32093751,0.00012323,2]
[347276922,1735653038276,-324.32093751,0.00012342,2]
[347276924,1735653038286,-324.32093751,0.00012361,2]
[347276926,1735653038295,-498.6986,0.00012373,2]
[347276928,1735653038304,-199.03678281,0.00012373,2]
[347276930,1735653038313,-798.57144,0.00012376,2]
[347276932,1735653038322,-500.0,0.00012379,2]
[347276934,1735653038331,-500.0,0.00012379,2]
[347276935,1735653038341,-222.9889713,0.00012379,2]
[347276936,1735653038352,-500.0,0.00012379,2]
[347276937,1735653038361,-500.0,0.00012379,2]
[347276938,1735653038370,-500.0,0.00012379,2]
[347276939,1735653038380,-211.98123329,0.00012379,2]
[347276940,1735653038390,-500.0,0.00012379,2]
[347276941,1735653038399,-2075158.29371887,0.0001238,2]
[347276943,1735653038409,-324.32093751,0.00012381,2]
[347276944,1735653038418,-391.061406,0.00012382,2]
[347276946,1735653038427,-591.3296468,0.00012382,2]
[347276948,1735653038437,-1728.9886897,0.00012382,2]
[347276950,1735653038446,-2576.1484446,0.00012382,2]
[347276952,1735653038455,-887.76971102,0.00012382,2]
[347276953,1735653038464,-840.86970944,0.00012382,2]
[347276956,1735653038474,-438.2496057,0.0001239,2]
[347276957,1735653038484,-500.0,0.00012398,2]
[347276960,1735653038493,-15000.0,0.00012399,2]
[347276962,1735653038503,-24378.5794516,0.00012399,2]
[347276963,1735653038512,-24378.57945154,0.00012399,2]
[347276966,1735653038522,-24378.57945154,0.00012399,2]
[347276968,1735653038531,-24378.57945154,0.00012399,2]
[347276970,1735653038541,-24378.57945154,0.00012399,2]
[347276971,1735653038550,-24378.57945154,0.00012399,2]
[347276973,1735653038559,-24378.57945154,0.00012399,2]
[347276975,1735653038569,-24378.57945154,0.00012399,2]
[347276977,1735653038578,-24378.57945154,0.00012399,2]
[347276979,1735653038587,-17450.49349126,0.00012399,2]
[347276981,1735653038597,-17450.4934912,0.00012399,2]
[347276983,1735653038611,-17450.4934912,0.00012399,2]
[347276985,1735653038620,-17450.4934912,0.00012399,2]
[347276987,1735653038630,-978.28,0.000124,2]
[347276989,1735653038639,-150.0,0.000124,2]
[347276991,1735653038649,-150.0,0.000124,2]
[347276993,1735653038658,-150.0,0.000124,2]
[347276995,1735653038667,-324.32093751,0.000124,2]
[347276997,1735653038677,-24378.57945154,0.000124,2]
[347276999,1735653038687,-198.35757975,0.000124,2]
[347277001,1735653038696,-200.0,0.00012463,2]
[347277003,1735653038706,-19632.92167174,0.00012463,2]
[347277005,1735653038716,-5678.05127034,0.00012463,2]
[347277007,1735653038725,-420.97400228,0.00012464,2]
[347277009,1735653038735,-1540.55009075,0.00012464,2]
[347277011,1735653038744,-1540.55009075,0.00012464,2]
[347277013,1735653038755,-210.704667,0.00012465,2]
[347277015,1735653038765,-420.97400228,0.00012465,2]
[347277017,1735653038774,-420.97400228,0.00012465,2]
[347277019,1735653038784,-2633.38595872,0.00012465,2]
[347277021,1735653038793,-210.48700114,0.00012466,2]
[347277023,1735653038802,-246.383736,0.00012466,2]
[347277025,1735653038811,-100377.41513668,0.00012467,2]
[347277027,1735653038820,-19632.92167174,0.00012467,2]
[347277029,1735653038829,-420.97400228,0.00012467,2]
[347277031,1735653038838,-262.16026549,0.00012467,2]
[347277033,1735653038847,-5678.05127034,0.00012467,2]
[347277035,1735653038859,-100377.41513668,0.00012467,2]
[347277037,1735653038868,-246.383736,0.00012467,2]
[347277039,1735653038877,-246.383736,0.00012468,2]
[347277041,1735653038886,-200.0,0.00012468,2]
[347277043,1735653038896,-7831.99179969,0.00012469,2]
[347277045,1735653038905,-200.0,0.00012469,2]
[347277047,1735653038914,-5678.05127034,0.00012469,2]
[347277049,1735653038922,-210.48700114,0.00012469,2]
[347277051,1735653038931,-1540.55009075,0.00012469,2]
[347277053,1735653038941,-262.16026549,0.00012469,2]
[347277054,1735653038951,-262.16026549,0.00012469,2]
[347277056,1735653038961,-2134.66457528,0.0001247,2]
[347277058,1735653038970,-7513.76885791,0.0001247,2]
[347277060,1735653038980,-200.0,0.0001247,2]
[347277062,1735653038989,-246.383736,0.0001247,2]
[347277064,1735653038998,-2633.38595872,0.00012471,2]
[347277066,1735653039008,-100377.41513668,0.00012471,2]
[347277069,1735653039017,-100377.41513668,0.00012471,2]
[347277071,1735653039027,-311976.6279984,0.00012471,2]
[347277072,1735653039036,-223.41666665,0.00012471,2]
[347277074,1735653039045,-2633.38595872,0.00012471,2]
[347277076,1735653039054,-2134.66457528,0.00012472,2]
[347277079,1735653039064,-7513.76885791,0.00012472,2]
[347277081,1735653039073,-311976.6279984,0.00012472,2]
[347277082,1735653039082,-19632.92167174,0.00012473,2]
[347277085,1735653039091,-7831.99179969,0.00012473,2]
[347277087,1735653039102,-2633.38595872,0.00012474,2]
[347277089,1735653039111,-5678.05127034,0.00012474,2]
[347277090,1735653039120,-2134.66457528,0.00012474,2]
[347277093,1735653039129,-200.0,0.00012475,2]
[347277095,1735653039140,-7831.99179969,0.00012475,2]
[347277097,1735653039149,-7513.76885791,0.00012475,2]
[347277099,1735653039159,-210.704667,0.00012475,2]
[347277101,1735653039168,-2134.66457528,0.00012475,2]
[347277102,1735653039178,-311976.6279984,0.00012476,2]
[347277105,1735653039188,-210.704667,0.00012477,2]
[347277107,1735653039198,-311976.6279984,0.00012477,2]
[347277109,1735653039207,-223.41666665,0.00012478,2]
[347277110,1735653039217,-200.0,0.00012479,2]
[347277112,1735653039226,-210.48700114,0.00012479,2]
[347277115,1735653039235,-200.0,0.0001248,2]
[347277117,1735653039245,-19632.92167174,0.0001248,2]
[347277118,1735653039254,-223.41666665,0.0001248,2]
[347277121,1735653039264,-13166.92979363,0.00012481,2]
[347277123,1735653039273,-1540.55009075,0.00012482,2]
[347277125,1735653039282,-210.48700114,0.00012482,2]
[347277127,1735653039292,-200.0,0.00012482,2]
[347277129,1735653039301,-7513.76885791,0.00012483,2]
[347277131,1735653039310,-2134.66457528,0.00012483,2]
[347277133,1735653039319,-7831.99179969,0.00012483,2]
[347277135,1735653039328,-150.0,0.00012484,2]
[347277137,1735653039337,-246.383736,0.00012484,2]
[347277139,1735653039346,-1540.55009075,0.00012484,2]
[347277141,1735653039359,-7513.76885791,0.00012485,2]
[347277143,1735653039369,-210.704667,0.00012485,2]
[347277145,1735653039379,-420.97400228,0.00012485,2]
[347277147,1735653039388,-13166.92979363,0.00012486,2]
[347277149,1735653039397,-1540.55009075,0.00012486,2]
[347277151,1735653039407,-223.41666665,0.00012486,2]
[347277153,1735653039416,-200.0,0.00012487,2]
[347277155,1735653039425,-210.48700114,0.00012487,2]
[347277156,1735653039434,-5678.05127034,0.00012488,2]
[347277157,1735653039443,-210.704667,0.00012489,2]
[347277158,1735653039452,-311976.6279984,0.00012489,2]
[347277159,1735653039461,-262.16026549,0.00012489,2]
[347277160,1735653039470,-19632.92167174,0.00012489,2]
[347277161,1735653039479,-13166.92979363,0.00012489,2]
[347277162,1735653039488,-200.0,0.00012489,2]
[347277164,1735653039498,-5678.05127034,0.00012489,2]
[347277166,1735653039507,-210.704667,0.0001249,2]
[347277168,1735653039516,-683743.42850819,0.0001249,2]
[347277170,1735653039526,-210.48700114,0.00012491,2]
[347277173,1735653039536,-7513.76885791,0.00012491,2]
[347277174,1735653039545,-414.5932256,0.00012491,2]
[347277176,1735653039555,-390.9368455,0.00012491,2]
[347277179,1735653039564,-369.1608911,0.00012491,2]
[347277180,1735653039574,-347.2603761,0.00012491,2]
[347277182,1735653039583,-1628.7026152,0.00012491,2]
[347277184,1735653039592,-1528.4165407,0.00012491,2]
[347277186,1735653039604,-2437.0899127,0.00012491,2]
[347277188,1735653039613,-2298.0313807,0.00012491,2]
[347277190,1735653039623,-200.0,0.00012491,2]
[347277192,1735653039632,-7831.99179969,0.00012491,2]
[347277194,1735653039642,-100377.41513668,0.00012492,2]
[347277196,1735653039651,-2633.38595872,0.00012492,2]
[347277199,1735653039664,-246.383736,0.00012493,2]
[347277201,1735653039674,-100377.41513668,0.00012493,2]
[347277203,1735653039684,-262.16026549,0.00012493,2]
[347277205,1735653039694,-19632.92167174,0.00012494,2]
[347277207,1735653039703,-13166.92979363,0.00012494,2]
[347277209,1735653039713,-2633.38595872,0.00012494,2]
[347277211,1735653039723,-200.0,0.00012495,2]
[347277213,1735653039732,-311976.6279984,0.00012495,2]
[347277215,1735653039742,-223.41666665,0.00012497,2]
[347277217,1735653039754,-420.97400228,0.00012497,2]
[347277220,1735653039765,-2134.66457528,0.00012498,2]
[347277223,1735653039774,-223.41666665,0.00012498,2]
[347277225,1735653039784,-262.16026549,0.00012498,2]
[347277227,1735653039794,-1000.0,0.00012499,2]
[347277229,1735653039803,-1000.0,0.00012499,2]
[347277231,1735653039812,-1000.0,0.00012499,2]
[347277233,1735653039821,-1000.0,0.00012499,2]
[347277235,1735653039831,-1000.0,0.00012499,2]
[347277237,1735653039840,-1000.0,0.00012499,2]
[347277239,1735653039850,-1000.0,0.00012499,2]
[347277241,1735653039859,-1000.0,0.00012499,2]
[347277243,1735653039868,-1000.0,0.00012499,2]
[347277245,1735653039877,-1000.0,0.00012499,2]
[347277247,1735653039886,-7831.99179969,0.00012499,2]
[347277249,1735653039896,-150.0,0.00012499,2]
[347277251,1735653039906,-13166.92979363,0.00012499,2]
[347277253,1735653039915,-13166.92979363,0.000125,2]
[347277255,1735653039924,-511577.89381395,0.000125,2]
[347277257,1735653039933,-2493.31219667,0.000125,2]
[347277259,1735653039943,-417170.54464527,0.000125,2]
[347277271,1735653040045,-1000.0,0.000124,2]
[347277273,1735653040055,-11920.36112456,0.000125,2]
[347277277,1735653040084,-1354.25202193,0.000125,2]
[347277403,1735653041466,-269.298173,0.000125,2]
[347277404,1735653041515,-1790.593,0.000125,2]
[347277405,1735653041526,-6879.04191615,0.000125,2]
[347277406,1735653041537,-11675.72720461,0.000125,2]
[347277407,1735653041548,-4768.88271488,0.000125,2]
[347277408,1735653041592,-17200135.5715928,0.000125,2]
[347277409,1735653041605,-2292241.86554085,0.000125,2]
[347277410,1735653041616,-500.47233503,0.000125,2]
[347277411,1735653041627,-47975.0,0.000125,2]
[347277412,1735653041661,-3152.69843346,0.000125,2]
[347277413,1735653041673,-774.6985844,0.000125,2]
[347277415,1735653041700,-836.7422472,0.000125,2]
[347277417,1735653041711,-593.69449637,0.000125,2]
[347277515,1735653043194,-9189.9999999,0.00012399,2]
[347277516,1735653043206,-8260.4934913,0.00012399,2]
[347277517,1735653043215,-200066.68182574,0.000125,2]
[347277518,1735653043226,-92282.9591629,0.000125,2]
[347277519,1735653043245,-18675.09157636,0.000125,2]
[347277520,1735653043257,-800.86626729,0.000125,2]
[347277521,1735653043268,-487.31201618,0.000125,2]
[347277522,1735653043279,-250.78536569,0.000125,2]
[347277523,1735653043290,-1024.40731465,0.000125,2]
[347277524,1735653043301,-6229.36169738,0.000125,2]
[347277525,1735653043312,-11586.07753166,0.000125,2]
[347277526,1735653043323,-13520.5,0.000125,2]
[347277527,1735653043334,-492.67199996,0.000125,2]
[347277528,1735653043345,-451.63100164,0.000125,2]
[347277529,1735653043370,-4220.74957971,0.000125,2]
[347277530,1735653043381,-1265.64022781,0.000125,2]
[347277531,1735653043392,-1032.1027053,0.000125,2]
[347277532,1735653043403,-288.79212945,0.000125,2]
[347277533,1735653043414,-663.66219947,0.000125,2]
[347277534,1735653043425,-2871.0,0.000125,2]
[347277535,1735653043436,-44796.00034188,0.000125,2]
[347277536,1735653043447,-245925.92633559,0.000125,2]
[347277537,1735653043819,-10942.7135776,0.000125,2]
[347277538,1735653043892,-369673.32456891,0.000125,2]
[347277539,1735653043936,-879.03247308,0.000125,2]
[347277540,1735653043948,-371.99000024,0.000125,2]
[347277541,1735653043959,-331.2000025,0.000125,2]
[347277542,1735653043987,-361.45361106,0.000125,2]
[347277543,1735653043998,-23908.84291167,0.000125,2]
[347277544,1735653044010,-279.714,0.000125,2]
[347277545,1735653044020,-1034.3555,0.000125,2]
[347277603,1735653046859,-414.8286262,0.000124,2]
[347277605,1735653046870,-293.31663136,0.000124,2]
[347277608,1735653046882,-16098.05822187,0.000124,2]
[347277610,1735653046893,-3900.75776183,0.000124,2]
[347277612,1735653046903,-556.27274948,0.000124,2]
[347277614,1735653046915,-658.34020344,0.000124,2]
[347277616,1735653046924,-1650.77606176,0.000125,2]
[347277618,1735653046935,-1874.0697,0.000125,2]
[347277620,1735653046947,-1938.16242923,0.000125,2]
[347277633,1735653047058,-80313.82007255,0.000125,2]
[347277636,1735653047069,-325.95661418,0.000125,2]
[347277638,1735653047080,-827.64663816,0.000125,2]
[347277640,1735653047091,-496.302152,0.000125,2]
[347277642,1735653047102,-13038.5,0.000125,2]
[347277645,1735653047116,-410.0,0.000125,2]
[347277649,1735653047145,-4119.16540577,0.000125,2]
[347277651,1735653047156,-4647.77442738,0.000125,2]
[347277655,1735653047184,-83979.34230885,0.000125,2]
[347277657,1735653047195,-7643.42167387,0.000125,2]
[347277659,1735653047207,-4862.26654661,0.000125,2]
[347277663,1735653047235,-302.0,0.000125,2]
[347277665,1735653047246,-693.71658246,0.000125,2]
[347277668,1735653047257,-1600.0,0.000125,2]
[347277670,1735653047267,-522.01898272,0.000125,2]
[347277672,1735653047278,-837.98971648,0.000125,2]
[347277674,1735653047289,-9309.10477623,0.000125,2]
[347277676,1735653047300,-16650.0,0.000125,2]
[347277679,1735653047311,-9514.47,0.000125,2]
[347277691,1735653047423,-510.41047901,0.000125,2]
[347277693,1735653047435,-12462.25594804,0.000125,2]
[347277695,1735653047446,-957.52,0.000125,2]
[347277697,1735653047459,-790.3312014,0.000125,2]
[347277700,1735653047471,-431.885,0.000125,2]
[347277702,1735653047484,-6800.0,0.000125,2]
[347277704,1735653047497,-2358.24575304,0.000125,2]
[347277708,1735653047529,-13437.90495304,0.000125,2]
[347277710,1735653047540,-16166.72813311,0.000125,2]
[347277712,1735653047551,-1757.30006,0.000125,2]
[347277714,1735653047562,-364.06220403,0.000125,2]
[347278885,1735653108149,156.427082,0.00015507,24]
[347278886,1735653112010,151.000711,0.00015507,24]
[347278887,1735653123693,157.156879,0.00015507,24]
[347278888,1735653124083,157.156879,0.00015507,24]
[347278889,1735653125494,296.182614,0.00015507,24]
[347278890,1735653125758,296.182614,0.00015507,24]
[347278891,1735653126072,296.182614,0.00015507,24]
[347278892,1735653127009,296.182614,0.00015507,24]
[347278893,1735653127389,296.182614,0.00015507,24]
[347278894,1735653129210,209.918762,0.00015507,24]
[347278895,1735653129450,209.918762,0.00015507,24]
[347278896,1735653129757,209.918762,0.00015507,24]
[347278897,1735653130270,209.918762,0.00015507,24]
[347278898,1735653130528,209.918762,0.00015507,24]
[347278899,1735653138115,438.02233,0.00015507,24]
[347278900,1735653138431,438.02233,0.00015507,24]
[347278901,1735653138819,438.02233,0.00015507,24]
[347278902,1735653139412,438.02233,0.00015507,24]
[347278903,1735653139619,438.02233,0.00015507,24]
[347278904,1735653141909,434.659811,0.00015507,24]
[347278905,1735653142160,434.659811,0.00015507,24]
[347278906,1735653142426,434.659811,0.00015507,24]
[347278907,1735653143264,434.659811,0.00015507,24]
[347278908,1735653143698,434.659811,0.00015507,24]
[347278991,1735653318908,159.78,0.00010137,2]
[347278992,1735653498889,449.74,0.00011474,2]
[347278993,1735653518081,339.05,9.555e-05,2]
[347278994,1735653548428,500.98,0.00011583,2]
[347278995,1735653688103,1000.0,0.00011425,2]
[347278996,1735653756584,7744.89,0.00011439,2]
[347278997,1735653787974,250.0,0.00011427,2]
[347278998,1735653861644,163.66,0.0001148,2]
[347279000,1735653924665,314.22,0.00011449,2]
[347279001,1735653929945,305.31,0.00011432,2]